Cogmind - Beta 13 @@@ ROGUE MODE // 2024.05.07 @ 18:32:40 Player: CONM Result: Destroyed by G-47 Trooper with Particle Gun Performance ------------- Evolutions (2) 1000 Regions Visited (5) 1000 Robots Destroyed (16) 80 Value Destroyed (236) 236 Prototype IDs (2) 40 Alien Tech Used (0) 0 Bonus (60) 60 TOTAL SCORE: 2416 Bonus ------- Follower Combat Kills 60 Cogmind --------- Core Integrity 0/550 Matter 92/300 Energy 8/100 System Corruption 10% Temperature Cool (17) Movement Hovering (46) Location -8/Storage Parts ------- > --- POWER (1) -------- (None) > --- PROPULSION (4) --- Aerolev Unit Aerolev Unit Flight Unit > --- UTILITY (4) ------ Propulsion Shielding > --- WEAPON (2) ------- Shock Bomb Launcher > --- INVENTORY (5) ---- (None) Peak State ------------ > --- POWER ------------ Light Nuclear Core > --- PROPULSION ------- Aerolev Unit Aerolev Unit Aerolev Unit > --- UTILITY ---------- Machine Analyzer Terrain Scan Processor Propulsion Shielding > --- WEAPON ----------- Rocket Launcher Axe > --- INVENTORY -------- Flight Unit [Rating: 26] Favorites ----------- Power Light Ion Engine Engine Light Ion Engine Power Core Light Nuclear Core Propulsion Aluminum Leg Leg Aluminum Leg Wheel Wheel Hover Unit Aerolev Unit Flight Unit VTOL Module Utility Small Storage Unit Device Improved Terrain Scanner Storage Small Storage Unit Processor Terrain Scan Processor Protection Propulsion Shielding Weapon Assault Rifle Ballistic Gun Assault Rifle Launcher Rocket Launcher Special Weapon Mining Laser Impact Weapon Heavy Hammer Slashing Weapon Axe Build | -11 -10 -10 -9 -8 -8 ------- Run | Yrd Mat Min Mat Mat Sto Slots Evolved 4 | . . . 2 2 . Power . | . . . . . . Propulsion 2 | . . . 1 1 . Utility 2 | . . . 1 1 . Weapon . | . . . . . . Parts Attached 37 | 7 . 3 12 3 12 Power 5 | 1 . 1 1 . 2 Engine 3 | 1 . 1 1 . . Core 2 | . . . . . 2 Reactor . | . . . . . . Propulsion 15 | 2 . . 6 2 5 Treads . | . . . . . . Leg 2 | 2 . . . . . Wheel 2 | . . . 2 . . Hover 4 | . . . . . 4 Flight 7 | . . . 4 2 1 Utility 9 | 2 . 1 3 1 2 Device 5 | 1 . 1 2 1 . Storage 1 | 1 . . . . . Processor 2 | . . . 1 . 1 Hackware . | . . . . . . Protection 1 | . . . . . 1 Artifact . | . . . . . . Weapon 8 | 2 . 1 2 . 3 Energy Gun . | . . . . . . Energy Cannon . | . . . . . . Ballistic Gun 3 | 2 . 1 . . . Ballistic Cannon . | . . . . . . Launcher 2 | . . . . . 2 Special Weapon 1 | . . . 1 . . Impact Weapon 1 | . . . 1 . . Slashing Weapon 1 | . . . . . 1 Piercing Weapon . | . . . . . . Special Melee Weapon . | . . . . . . Unidentified Prototypes 2 | . . . 1 . 1 Parts Lost 26 | . . 3 10 4 9 Power 5 | . . 1 2 . 2 Propulsion 9 | . . . 5 3 1 Utility 6 | . . 1 1 1 3 Weapon 6 | . . 1 2 . 3 Highest Loss Streak 7 | . . 2 4 4 7 To Critical Strikes . | . . . . . . Average Slot Usage (%) 77 | . 100 94 55 64 42 Engine 9 | . 14 13 6 . . Leg 18 | . 28 28 8 . . Hover 1 | . . . . . 15 Flight 2 | . . . 6 25 1 Device 10 | . 14 13 7 16 1 Storage 10 | . 14 14 7 . . Processor 1 | . . . . 9 7 Ballistic Gun 17 | . 28 23 10 . . Impact Weapon 1 | . . . 3 9 3 Naked Turns . | . . . . . . Heaviest Build 22 | 15 15 15 22 5 13 Greatest Support 24 | 20 20 20 20 12 24 Greatest Overweight (x) 3 | 3 . . 2 . 2 Average Overweight (x) . | . . . . . . Largest Inventory Capacity 8 | 8 8 8 8 5 5 Average Capacity 7 | 7 8 8 7 5 5 Most Carried 8 | 5 5 8 8 2 4 Average Carried 5 | 2 5 7 6 . 2 Final Capacity 8 | 8 8 8 5 5 5 Final Carried 8 | 5 5 8 3 2 . Class Distribution -------------------- 91% | Mutant 5% | Sprinter 3% | Scavenger-Mutant Dominant Class ---------------- Mutant | -10/Materials Mutant | -10/Mines Mutant | -9/Materials Scavenger-Mutant | -8/Materials Mutant | -8/Storage Resources | -11 -10 -10 -9 -8 -8 ----------- Run | Yrd Mat Min Mat Mat Sto Matter Collected 470 | 300 . 103 36 . 31 Remotely . | . . . . . . Salvage Created 355 | 95 . 151 . . 109 Parts 41 | 19 . 18 . . 4 Haulers Intercepted . | . . . . . . Recyclers Shooed 2 | 2 . . . . . Parts Field Recycled . | . . . . . . Retrieved Matter . | . . . . . . Parts Self-Destructed . | . . . . . . Prevented . | . . . . . . Kills | -11 -10 -10 -9 -8 -8 ------- Run | Yrd Mat Min Mat Mat Sto Combat Hostiles Destroyed 10 | . . 8 . . 2 Guns 8 | . . 8 . . . AOE 2 | . . . . . 2 Classes Destroyed 3 | 1 . 1 . . 1 Tunneler 6 | 5 . 1 . . . Swarmer 8 | . . 8 . . . Grunt 2 | . . . . . 2 Best Kill Streak 4 | 2 . 4 . . 2 Combat Bots Only 4 | . . 4 . . 2 Max Kills in Single Turn 2 | 2 . 2 . . 1 Gunslinging 1 | . . 1 . . . Exploded 1 | . . . . . 1 Melee . | . . . . . . Uniques/NPCs Destroyed . | . . . . . . Combat | -11 -10 -10 -9 -8 -8 -------- Run | Yrd Mat Min Mat Mat Sto Hostile Shots Fired 306 | . 23 51 112 36 84 Missed 104 | . 6 15 41 12 30 Damage Taken 2627 | . 223 288 813 250 1053 Core 988 | . 32 53 336 145 422 Absorbed by Shields . | . . . . . . Redirected to Shielding 22 | . . . . . 22 Core Remaining (%) 60 | 100 . 66 16 . . Volleys Fired 54 | 10 2 33 5 . 4 Largest 2 | 2 2 2 1 . 1 Hottest 100 | 40 40 40 100 . 36 Shots Fired 85 | 20 4 52 5 . 4 Gun 76 | 20 4 52 . . . Cannon . | . . . . . . Launcher 4 | . . . . . 4 Special 5 | . . . 5 . . Kinetic 76 | 20 4 52 . . . Thermal 5 | . . . 5 . . Explosive . | . . . . . . Electromagnetic 4 | . . . . . 4 Robot Hit Streak 5 | 5 3 4 . . 5 Robot Miss Streak 5 | 3 1 5 . . 2 Penetration Max . | . . . . . . Secondary Targets 2 | . . 2 . . . Max Gunslinging Chain 1 | . . 1 . . . Shots Hit Robots 41 | 9 3 25 . 1 3 Core Hits 22 | 5 2 9 1 . 5 Critical Kills . | . . . . . . Critical Parts Destroyed . | . . . . . . Critical Strikes . | . . . . . . Melee Attacks 32 | . . . 16 4 12 Impact 26 | . . . 16 4 6 Slashing 6 | . . . . . 6 Piercing . | . . . . . . Sneak Attacks . | . . . . . . Combat Hostiles . | . . . . . . Follow-up Attacks . | . . . . . . Damage Inflicted 843 | 138 38 309 6 35 317 Guns 481 | 138 34 309 . . . Cannons . | . . . . . . Explosions 242 | . . . . . 242 Melee 91 | . . . . 35 56 Ramming 29 | . 4 . 6 . 19 Kinetic 481 | 138 34 309 . . . Thermal 61 | . . . . . 61 Explosive . | . . . . . . Electromagnetic 181 | . . . . . 181 Impact 91 | . . . . 35 56 Slashing . | . . . . . . Piercing . | . . . . . . Highest Corruption 10 | . 2 2 . . 10 Average Corruption 2 | . 1 2 . . 10 Corruption Purged . | . . . . . . Corruption Blocked . | . . . . . . Effects 17 | . 1 15 . . 1 Message Errors 2 | . 1 1 . . . Matter Fused 3 | . . 3 . . . Heat Flow Errors 3 | . . 3 . . . Energy Discharges 2 | . . 2 . . . Data Loss (minor) 3 | . . 3 . . . Data Loss (major) 2 | . . 1 . . 1 Misfires 1 | . . 1 . . . Alerts 1 | . . 1 . . . Overload Shots . | . . . . . . Overflow Damage . | . . . . . . Projectiles . | . . . . . . Explosions . | . . . . . . Melee . | . . . . . . Knockbacks 1 | . . . . . 1 Impact 1 | . . . . . 1 Kinetic . | . . . . . . Secondary . | . . . . . . Self-Inflicted Damage 34 | . . . 1 . 33 Shots 1 | . . . . . 1 Rammed 4 | . . . 2 . 2 Targets Rammed 10 | . 3 . 5 . 2 Kicked 6 | . 3 . 3 . . Crushed . | . . . . . . Highest Temperature 267 | . 3 267 4 . 21 Average Temperature 73 | . 2 99 4 . 8 Received Heat Transfer 714 | . 126 . 183 54 351 Siege Activations . | . . . . . . Robots Corrupted . | . . . . . . Combat Hostiles . | . . . . . . Parts Fried . | . . . . . . Impact Corruptions . | . . . . . . Robots Melted . | . . . . . . Combat Hostiles . | . . . . . . Parts Melted . | . . . . . . Heat Transferred 100 | . . . . . 100 Parts Sabotaged . | . . . . . . Parts Stolen . | . . . . . . Parts Stripped . | . . . . . . Power Chain Reactions 1 | . . . . . 1 Alert | -11 -10 -10 -9 -8 -8 ------- Run | Yrd Mat Min Mat Mat Sto Peak Influence 182 | 25 31 182 159 95 122 Initial 73 | . 16 12 20 73 33 Average 62 | 10 21 103 38 81 48 Maximum Alert Level . | . . . . . . Low Security (%) 100 | 100 100 100 100 100 100 Level 1 . | . . . . . . Level 2 . | . . . . . . Level 3 . | . . . . . . Level 4 . | . . . . . . Level 5 . | . . . . . . High Security . | . . . . . . Max Security . | . . . . . . Squads Dispatched 4 | . 1 . 1 . 2 Investigation . | . . . . . . Extermination . | . . . . . . Reinforcement 4 | . 1 . 1 . 2 Assault . | . . . . . . Garrison . | . . . . . . Intercept . | . . . . . . Searches Triggered . | . . . . . . Construction Impeded 1 | . . . . . 1 Haulers Reinforced . | . . . . . . Active Scanning Responses . | . . . . . . Cargo Convoy Interrupts . | . . . . . . Stealth | -11 -10 -10 -9 -8 -8 --------- Run | Yrd Mat Min Mat Mat Sto Distress Signals 3 | . . . 1 1 1 Communications Jammed . | . . . . . . Distress Signals . | . . . . . . Times Spotted 72 | . 3 10 36 9 14 Peak Tracking Total 10 | . 4 3 9 8 10 Tactical Retreats 10 | . . . 6 1 3 Traps | -11 -10 -10 -9 -8 -8 ------- Run | Yrd Mat Min Mat Mat Sto Traps Triggered 4 | . 2 . 2 . . Indirectly . | . . . . . . Trap Hack Attempts . | . . . . . . Triggered . | . . . . . . Disarmed . | . . . . . . Reprogrammed . | . . . . . . Reused . | . . . . . . Traps Extracted . | . . . . . . Installed . | . . . . . . Triggered . | . . . . . . Machines | -11 -10 -10 -9 -8 -8 ---------- Run | Yrd Mat Min Mat Mat Sto Machines Disabled 2 | . . . . . 2 Max in Single Turn 1 | . . . . . 1 Machines Repaired . | . . . . . . Machines Dismantled . | . . . . . . Machines Sabotaged . | . . . . . . Overloaded Fab Kills . | . . . . . . Hacking | -11 -10 -10 -9 -8 -8 --------- Run | Yrd Mat Min Mat Mat Sto Machines Accessed 3 | . . 1 . 1 1 Terminals 2 | . . . . 1 1 Fabricators . | . . . . . . Repair Stations . | . . . . . . Recycling Units . | . . . . . . Scanalyzers . | . . . . . . Garrison Access . | . . . . . . Total Hacks 4 | . . 1 . 1 2 Successful 1 | . . 1 . . . Failed 3 | . . . . 1 2 Catastrophic . | . . . . . . Database Lockouts . | . . . . . . Manual . | . . . . . . Terminals 3 | . . . . 1 2 Fabricators . | . . . . . . Repair Stations . | . . . . . . Recycling Units . | . . . . . . Scanalyzers . | . . . . . . Garrison Access . | . . . . . . Terminal Hacks 1 | . . 1 . . . Open Door 1 | . . 1 . . . Fabricator Hacks . | . . . . . . Repair Station Hacks . | . . . . . . Recycling Unit Hacks . | . . . . . . Scanalyzer . | . . . . . . Garrison Access Hacks . | . . . . . . Unauthorized Hacks . | . . . . . . Terminals . | . . . . . . Fabricators . | . . . . . . Repair Stations . | . . . . . . Recycling Units . | . . . . . . Scanalyzers . | . . . . . . Garrison Access . | . . . . . . Data Cores Recovered . | . . . . . . Used . | . . . . . . Hacking Detections 1 | . . . . . 1 Full Trace Events . | . . . . . . Feedback Events . | . . . . . . Feedback Blocked . | . . . . . . Robot Schematics Acquired . | . . . . . . Robots Built . | . . . . . . Authchips . | . . . . . . Time . | . . . . . . Total Robot Build Rating . | . . . . . . Part Schematics Acquired . | . . . . . . Parts Built . | . . . . . . Authchips . | . . . . . . Time . | . . . . . . Total Part Build Rating . | . . . . . . Parts Repaired . | . . . . . . Time . | . . . . . . Parts Recycled . | . . . . . . Recycled Matter . | . . . . . . Retrieved Matter . | . . . . . . Retrieved Components . | . . . . . . Parts Scanalyzed . | . . . . . . Part Schematics Acquired . | . . . . . . Parts Damaged . | . . . . . . Bothacking | -11 -10 -10 -9 -8 -8 ------------ Run | Yrd Mat Min Mat Mat Sto Used RIF Installer . | . . . . . . Robots Hacked . | . . . . . . Non-combat . | . . . . . . Combat . | . . . . . . Robot Hacks Applied . | . . . . . . Relay Couplers Released . | . . . . . . Fabnet Peak Effective % . | . . . . . . Robots Rewired . | . . . . . . Allies Hacked . | . . . . . . Hacks Repelled . | . . . . . . Allies | -11 -10 -10 -9 -8 -8 -------- Run | Yrd Mat Min Mat Mat Sto Total Allies 1 | . . 1 . . . Largest Group 1 | . . 1 . . . Highest-Rated Group 31 | . . 31 . . . Highest-Rated Ally 31 | . . 31 . . . Total Orders . | . . . . . . Ally Attacks 6 | . . 6 . . . Total Damage 126 | . . 126 . . . Kills 2 | . . 2 . . . Allies Corrupted . | . . . . . . Allies Melted . | . . . . . . Intel | -11 -10 -10 -9 -8 -8 ------- Run | Yrd Mat Min Mat Mat Sto Robot Analysis Total . | . . . . . . Derelict Logs Recovered 2 | . . 2 . . . Drone Launches 12 | . . . 12 . . Drone Recoveries . | . . . . . . Exploration | -11 -10 -10 -9 -8 -8 ------------- Run | Yrd Mat Min Mat Mat Sto Turns Passed 1653 | 252 116 696 379 54 156 Spaces Moved 1347 | 171 89 468 350 86 183 Core 79 | 17 . . 3 . 59 Treads . | . . . . . . Legs 860 | 154 89 468 149 . . Wheels 21 | . . . 21 . . Hover 110 | . . . . . 110 Flight 277 | . . . 177 86 14 Fastest Speed 29 | 50 120 120 29 32 40 Average Speed 94 | 120 120 120 80 37 48 Slowest Speed 200 | 200 120 120 190 40 150 Overloaded Moves . | . . . . . . Propulsion Burnouts . | . . . . . . Robots Hopped . | . . . . . . Cave-ins Triggered 1 | . . . . . 1 Exploration Rate (%) 31 | 8 16 65 53 14 35 Regions Visited 5 Branch Regions 2 Pre-discovered Areas . | . . . . . . Known Exits Taken . | . . . . . . Unknown Exits Taken 5 | 1 1 1 1 1 . Scrap Searched 1 | . . 1 . . . Spaces Dug 34 | . . . 20 3 11 Terrain Destroyed 38 | . . . 20 3 15 Melee 29 | . . . 15 3 11 Projectile 5 | . . . 5 . . AOE 4 | . . . . . 4 Terrain Rammed 1 | . . . . . 1 Walls Destroyed . | . . . . . . Machines Disabled . | . . . . . . Actions | -11 -10 -10 -9 -8 -8 --------- Run | Yrd Mat Min Mat Mat Sto Total 1563 | 193 93 552 401 100 224 Wait 55 | . . 40 4 6 5 Move 1342 | 170 88 467 349 85 183 Hop . | . . . . . . Pick Up 24 | 6 . 7 6 2 3 Fast Attach 14 | 6 . . 2 . 6 Attach 23 | 1 . 3 10 3 6 Detach 1 | . . . . . 1 Swap . | . . . . . . Drop 7 | . . 2 4 . 1 Fire 54 | 10 2 33 5 . 4 Melee 32 | . . . 16 4 12 Ram 5 | . . . 2 . 3 Kick 6 | . 3 . 3 . . Crush . | . . . . . . Escape Stasis . | . . . . . . Rewire . | . . . . . . Trap . | . . . . . . Miscellaneous . | . . . . . . Route ------- -11/Scrapyard -10/Materials -10/Mines -9/Materials (discovered 4 exits: *Mat x3 / [*Min]) -8/Materials -8/Storage History --------- Turn | Location | Event 30 | -11/Scrapyard | Discovered new exit (range 14) 253 | -11/Scrapyard | Entered Materials 263 | -10/Materials | Discovered new exit (range 16) 311 | -10/Materials | Build established: Mutant 369 | -10/Materials | Entered Mines 607 | -10/Mines | Learned Materials stockpile data 654 | -10/Mines | Received a Mining Laser from a helpful Derelict 943 | -10/Mines | Found the Drone Emporium 951 | -10/Mines | Found Prototype Device 990 | -10/Mines | Learned Materials stockpile data 1024 | -10/Mines | Discovered new exit (range 6) 1065 | -10/Mines | Entered Materials 1065 | -9/Materials | Evolved 2 slots: Propulsion x1, Utility x1 1300 | -9/Materials | Identified Decoy Drone Bay 1305 | -9/Materials | Discovered new exit (range 17) 1312 | -9/Materials | Discovered new exit (range 47) 1322 | -9/Materials | Discovered new exit (range 81) 1324 | -9/Materials | Discovered new exit (range 70) 1329 | -9/Materials | Lost 4 parts (1n1u2w) 1377 | -9/Materials | Core integrity fell below 50% 1444 | -9/Materials | Core integrity fell below 20% 1444 | -9/Materials | Entered another Materials area 1444 | -8/Materials | Evolved 2 slots: Propulsion x1, Utility x1 1462 | -8/Materials | Discovered new exit (range 16) 1465 | -8/Materials | Lost 3 parts (1p2n) 1498 | -8/Materials | Entered Storage 1521 | -8/Storage | Core integrity fell below 50% 1555 | -8/Storage | Core integrity fell below 20% 1583 | -8/Storage | Lost 7 parts (1p3n2u1w) 1608 | -8/Storage | Crushed by falling debris 1609 | -8/Storage | System corruption reached 10% 1643 | -8/Storage | Lost 4 parts (2u2w) 1654 | -8/Storage | Destroyed by G-47 Trooper with Particle Gun Last Messages --------------- SECURING TERMINAL." 01628_ Connecting with Terminal... 01628_ Current location identified: Storage 01629_ Slammed into O-16 Technician. 01631_ O-16 Technician uses terminal to summon reinforcements. 01631_ ALERT: Hostiles spotted, dispatching reinforcements to Terminal S004. 01631_ O-16 Technician locks terminal. 01637_ Acquired Shock Bomb Launcher. 01643_ G-47 Trooper destroyed. 01643_ Transfer Shaft disabled. 01645_ Chain reaction triggered in Corrupted Lgt. Nuclear Core. 01645_ G-47 Trooper destroyed. 01652_ Transfer Shaft disabled. 01652_ Lgt. Nuclear Core destroyed. 01653_ U-05 Engineer lays Concrete. 01653_ Aerolev Unit destroyed. 01654_ U-05 Engineer lays Concrete. Map ----- +----------------------------------------------------+ | ????????????????????????????????????????????##### | | ????????????????????????????????????????????# " | | ?????????????????????????????###########????##### | | ?????????????????????????????# ######"#### | | ?????????????????????????????# / | | ?????????????????????????????# """""" # | | ?????????????????????????????# "????" # | | ?????????????????????????????# "????" / | | ?????????????????????????????# """""" ## ### | | ?????????????????????????????# ## #?? | | ?????????????????????????????# ## ##+#?? | | ?????????????????????????????#####/###### #????? | | ??????????????###+############## #??# #????? | | ????????????? Y #??# #?"""? | | ????????????? Y T #??# #?"""? | | ????????????? =g #??# #?"""? | | ?????????????????+####### g* ## #??# #????? | | ????????????????????????# =% g########??# ####+# | | ????????????????????????# #????? # | | ????????????????????????# #?????? + | | ????????????????????????# "#?????????# | | ????????????????????????# #?????????# | | ????????????????????????# #?????????# """ | | ????????????????????????# #?????????# """ | | ????????????????????????# #?????#+### """ | | ????????????????????????#@ #?????# | | ????????????????????????# #?????# | | ????????????????????????# #?????# ^ #### | | ????????????????????????# #?????# " | | ????????????????????????############# # | | ??????????????????????????????# # # | | ??????????????????????????????# #? " | | ??????????????????????????????# +??" | | ??????????????????????????????# "T" #??? | | ??????????????????????????????# ###########??? | | ??????????????????????????????## ###########???? | | ???????????????????????????????# # #???? | | ???????????????????????????????# # #???? | | ???????????????????????????????# # #???? | | ???????????????????????????????# + #???? | | ???????????????????????????????# # """ """ #???? | | ???????????????????????????????# # """ """ #???? | | ???????????????????????????????# # """ """ ????? | | ???????????????????????????????# # ?????? | | ???????????????????????????????# ##### ###?????? | | ???????????????????????????????# #????########## | | ???????????????????????????????# #???### | | ???????????????????????????????# #???#"" * " | | ???????????????????????????????# #???#"T * "G" | | ???????????????????????????????# #???#"" """ | +----------------------------------------------------+ Best States ------------- Heat Dissipation 31 Energy Generation 14 Energy Capacity 250 Matter Stores 271 Matter Capacity 300 Sight Range 16 Terrain Scan Range 16 Terrain Scan Density 85 Propulsion Shielding 33 Evasion (%) 64 Item Schematics ----------------- None Robot Schematics ------------------ None Fabricated ------------ Nothing Alien Tech Used ----------------- None Achievements -------------- Release The Drones! Challenges ------------ None Game ------ Seed MetaNeutrinoMount Manual? 0 Play Time 00:26:39 Cumulative 12.7 hours Start 2024.05.05 @ 21:26:46 End 2024.05.07 @ 18:32:40 Sessions 3 Manual Loads 0 Difficulty Rogue Special Mode None Game No. 28 Rogue 28 Adventurer 0 Explorer 0 Win Type - Total 0 Types 0/0/0/0/0/0/0/0/0 Lore% 14 Gallery% 13 Achievement% 12 Wizard Run 0 Options --------- Layout 1 ASCII 0 Keyboard 0 Movement Arrows Keybinds 0 Fullscreen 1 Font 24/Smallcaps Map View 50x40 Zoom Use 0% Tactical HUD 1 Map Filters NONE Filters NONE Steam 1 RUN: e65c19bc-c2d6-44e6-a0a9-3e45783388a5